[Event "*** Titled Tuesday Blitz"]
[Site "Chess.com"]
[Date "2020.04.07"]
[Round "8"]
[White "skoularikii"]
[Black "AnnaChessLook"]
[Result "1-0"]
[WhiteElo "2463"]
[BlackElo "2233"]
[TimeControl "180+1"]
[EndTime "14:36:03 PDT"]
[Termination "skoularikii won on time"]

1. e4 {[%clk 0:02:58.7]} 1... c5 {[%clk 0:02:54.4]} 2. Nf3 {[%clk 0:02:58.4]}
2... Nc6 {[%clk 0:02:54.6]} 3. d4 {[%clk 0:02:58.2]} 3... cxd4 {[%clk 0:02:55]}
4. Nxd4 {[%clk 0:02:59.1]} 4... e5 {[%clk 0:02:55.7]} 5. Nb3 {[%clk 0:02:58]}
5... Bb4+ {[%clk 0:02:54]} 6. c3 {[%clk 0:02:57.1]} 6... Be7 {[%clk 0:02:53.2]}
7. Be2 {[%clk 0:02:56.4]} 7... Nf6 {[%clk 0:02:53.2]} 8. Bf3 {[%clk 0:02:56.1]}
8... O-O {[%clk 0:02:52.1]} 9. O-O {[%clk 0:02:56]} 9... d6 {[%clk 0:02:51.9]}
10. c4 {[%clk 0:02:54.3]} 10... Be6 {[%clk 0:02:34.6]} 11. Qe2 {[%clk
0:02:48.7]} 11... Nd7 {[%clk 0:02:31.8]} 12. Nc3 {[%clk 0:02:46.3]} 12... f5
{[%clk 0:02:31.6]} 13. exf5 {[%clk 0:02:40.7]} 13... Bxf5 {[%clk 0:02:31.7]} 14.
Rd1 {[%clk 0:02:29.3]} 14... Qe8 {[%clk 0:02:07.5]} 15. Nd5 {[%clk 0:02:26]}
15... Qg6 {[%clk 0:02:01.4]} 16. Bh5 {[%clk 0:02:22.8]} 16... Qe6 {[%clk
0:01:38.2]} 17. Nc7 {[%clk 0:02:12.4]} 17... Qf6 {[%clk 0:01:38.1]} 18. Nxa8
{[%clk 0:02:10]} 18... Rxa8 {[%clk 0:01:39]} 19. c5 {[%clk 0:01:50.9]} 19...
Nxc5 {[%clk 0:01:33.1]} 20. Nxc5 {[%clk 0:01:49.7]} 20... dxc5 {[%clk 0:01:34]}
21. Qb5 {[%clk 0:01:33.4]} 21... b6 {[%clk 0:01:18.3]} 22. Bf3 {[%clk
0:01:27.5]} 22... e4 {[%clk 0:01:06.2]} 23. Bxe4 {[%clk 0:01:24]} 23... Bxe4
{[%clk 0:01:00.7]} 24. Qc4+ {[%clk 0:01:11.6]} 24... Kh8 {[%clk 0:01:00.4]} 25.
Qxe4 {[%clk 0:01:11.8]} 25... Rf8 {[%clk 0:01:00.9]} 26. Be3 {[%clk 0:01:11.2]}
26... Ne5 {[%clk 0:00:50]} 27. Rd5 {[%clk 0:01:10.6]} 27... Ng6 {[%clk 0:00:46]}
28. Rh5 {[%clk 0:01:02.9]} 28... Qxb2 {[%clk 0:00:38]} 29. Rf1 {[%clk
0:00:58.3]} 29... Qf6 {[%clk 0:00:36.7]} 30. Bg5 {[%clk 0:00:56.7]} 30... Qf5
{[%clk 0:00:31.6]} 31. Qe3 {[%clk 0:00:51.7]} 31... Bd6 {[%clk 0:00:19.9]} 32.
Qh3 {[%clk 0:00:38.8]} 32... Qxh3 {[%clk 0:00:19.2]} 33. Rxh3 {[%clk 0:00:39.1]}
33... Be5 {[%clk 0:00:18.5]} 34. Re1 {[%clk 0:00:36.1]} 34... Bd4 {[%clk
0:00:18.4]} 35. Be3 {[%clk 0:00:33.3]} 35... Bf6 {[%clk 0:00:16.1]} 36. Rf3
{[%clk 0:00:31.2]} 36... Rd8 {[%clk 0:00:14.7]} 37. Kf1 {[%clk 0:00:29.1]} 37...
Ne5 {[%clk 0:00:14]} 38. Rf5 {[%clk 0:00:28.6]} 38... Nc4 {[%clk 0:00:12.1]} 39.
Bg5 {[%clk 0:00:26.5]} 39... Bxg5 {[%clk 0:00:10.1]} 40. Rxg5 {[%clk 0:00:26.3]}
40... h6 {[%clk 0:00:10.6]} 41. Rf5 {[%clk 0:00:25.8]} 41... Rd7 {[%clk
0:00:10.6]} 42. Rf4 {[%clk 0:00:24.1]} 42... Na5 {[%clk 0:00:06.2]} 43. h4
{[%clk 0:00:22.8]} 43... Nc6 {[%clk 0:00:06.2]} 44. Rf8+ {[%clk 0:00:22.6]}
44... Kh7 {[%clk 0:00:06.2]} 45. h5 {[%clk 0:00:22]} 45... Nb4 {[%clk
0:00:06.4]} 46. Ree8 {[%clk 0:00:21.6]} 46... g5 {[%clk 0:00:06.8]} 47. Rh8+
{[%clk 0:00:18]} 47... Kg7 {[%clk 0:00:07.2]} 48. Reg8+ {[%clk 0:00:18.2]} 48...
Kf6 {[%clk 0:00:07.7]} 49. a3 {[%clk 0:00:18.4]} 49... Nc2 {[%clk 0:00:07.6]}
50. Rxh6+ {[%clk 0:00:17.9]} 50... Kf5 {[%clk 0:00:07.8]} 51. Rf8+ {[%clk
0:00:17.9]} 51... Kg4 {[%clk 0:00:08.2]} 52. Re6 {[%clk 0:00:14.8]} 52... Rd1+
{[%clk 0:00:07]} 53. Ke2 {[%clk 0:00:15.3]} 53... Re1+ {[%clk 0:00:07.4]} 54.
Kd2 {[%clk 0:00:15.6]} 54... Rxe6 {[%clk 0:00:07.1]} 55. Kxc2 {[%clk 0:00:16]}
55... Kxh5 {[%clk 0:00:07.5]} 56. Kd3 {[%clk 0:00:16.4]} 56... a5 {[%clk
0:00:08]} 57. Rf7 {[%clk 0:00:16.8]} 57... Kg4 {[%clk 0:00:07.2]} 58. Rb7 {[%clk
0:00:16.8]} 58... Kf5 {[%clk 0:00:06.3]} 59. a4 {[%clk 0:00:16.6]} 59... Ke5
{[%clk 0:00:06.3]} 60. Kc4 {[%clk 0:00:16.7]} 60... Rf6 {[%clk 0:00:05.8]} 61.
f3 {[%clk 0:00:15.2]} 61... Rg6 {[%clk 0:00:04.1]} 62. Kb5 {[%clk 0:00:15.4]}
62... Kd4 {[%clk 0:00:04]} 63. Rd7+ {[%clk 0:00:14]} 63... Ke3 {[%clk
0:00:03.7]} 64. Rf7 {[%clk 0:00:11.1]} 64... Kf2 {[%clk 0:00:03.6]} 65. g4
{[%clk 0:00:10.7]} 65... Ke3 {[%clk 0:00:02.2]} 66. Kc4 {[%clk 0:00:10.9]} 1-0

[Event "*** Titled Tuesday Blitz"]
[Site "Chess.com"]
[Date "2020.04.07"]
[Round "8"]
[White "ChessicallyInclined"]
[Black "MarcoRiehle"]
[Result "1-0"]
[WhiteElo "2564"]
[BlackElo "2701"]
[TimeControl "180+1"]
[EndTime "14:36:23 PDT"]
[Termination "ChessicallyInclined won by checkmate"]

1. d4 {[%clk 0:03:00.9]} 1... d5 {[%clk 0:02:58.3]} 2. c4 {[%clk 0:03:01.2]}
2... e6 {[%clk 0:02:58.6]} 3. Nc3 {[%clk 0:03:01.4]} 3... c5 {[%clk 0:02:58.7]}
4. cxd5 {[%clk 0:02:59.1]} 4... cxd4 {[%clk 0:02:57.6]} 5. Qxd4 {[%clk
0:02:58.7]} 5... Nc6 {[%clk 0:02:55.9]} 6. Qd1 {[%clk 0:02:58.2]} 6... exd5
{[%clk 0:02:52.7]} 7. Qxd5 {[%clk 0:02:59.1]} 7... Be6 {[%clk 0:02:52.5]} 8.
Qxd8+ {[%clk 0:02:55.4]} 8... Rxd8 {[%clk 0:02:53.4]} 9. e3 {[%clk 0:02:47.2]}
9... Nb4 {[%clk 0:02:52.1]} 10. Bb5+ {[%clk 0:02:39.2]} 10... Ke7 {[%clk
0:02:52.4]} 11. Kf1 {[%clk 0:01:54.9]} 11... g5 {[%clk 0:02:48.6]} 12. Nf3
{[%clk 0:01:52.5]} 12... Nc2 {[%clk 0:02:48.2]} 13. Rb1 {[%clk 0:01:50.9]} 13...
Bxa2 {[%clk 0:02:48.6]} 14. Nxa2 {[%clk 0:01:44.8]} 14... Rd1+ {[%clk 0:02:49]}
15. Ke2 {[%clk 0:01:44.8]} 15... Rxh1 {[%clk 0:02:49.9]} 16. Bd3 {[%clk
0:01:44]} 16... g4 {[%clk 0:02:49.7]} 17. Ne5 {[%clk 0:01:42.4]} 17... Rxh2
{[%clk 0:02:48.9]} 18. Bxc2 {[%clk 0:01:38.2]} 18... Rxg2 {[%clk 0:02:40.3]} 19.
Be4 {[%clk 0:01:32.6]} 19... Rg1 {[%clk 0:02:38.5]} 20. Nc3 {[%clk 0:01:26.1]}
20... Bg7 {[%clk 0:02:37]} 21. Nc4 {[%clk 0:01:06.6]} 21... Nf6 {[%clk
0:02:30.3]} 22. Bxb7 {[%clk 0:01:00.3]} 22... h5 {[%clk 0:02:29.9]} 23. b3
{[%clk 0:00:57.6]} 23... Kd7 {[%clk 0:02:22.4]} 24. e4 {[%clk 0:00:40.9]} 24...
Rb8 {[%clk 0:02:05.7]} 25. Ba6 {[%clk 0:00:38]} 25... h4 {[%clk 0:02:00.7]} 26.
e5 {[%clk 0:00:34.8]} 26... h3 {[%clk 0:01:54.5]} 27. Bf4 {[%clk 0:00:26.1]}
27... Rxb1 {[%clk 0:01:53.5]} 28. Nxb1 {[%clk 0:00:27]} 28... Rxb3 {[%clk
0:01:34]} 29. exf6 {[%clk 0:00:24.8]} 29... Bxf6 {[%clk 0:01:33]} 30. Nbd2
{[%clk 0:00:24.3]} 30... Rc3 {[%clk 0:01:21.1]} 31. Ne3 {[%clk 0:00:22.3]} 31...
Ra3 {[%clk 0:01:08.5]} 32. Bb5+ {[%clk 0:00:22.1]} 32... Ke6 {[%clk 0:01:03.6]}
33. Bc4+ {[%clk 0:00:22.3]} 33... Kd7 {[%clk 0:01:02.4]} 34. Nxg4 {[%clk
0:00:21.6]} 34... Bc3 {[%clk 0:00:57.9]} 35. Ne4 {[%clk 0:00:18.3]} 35... f5
{[%clk 0:00:56.4]} 36. Nxc3 {[%clk 0:00:16.9]} 36... fxg4 {[%clk 0:00:54.8]} 37.
Ne4 {[%clk 0:00:16.4]} 37... a6 {[%clk 0:00:48.2]} 38. Bxa6 {[%clk 0:00:13.6]}
38... Ke6 {[%clk 0:00:44.6]} 39. Bd3 {[%clk 0:00:10.7]} 39... Ra2+ {[%clk
0:00:44.5]} 40. Ke3 {[%clk 0:00:09.7]} 40... Ra1 {[%clk 0:00:37]} 41. Nc5+
{[%clk 0:00:08.7]} 41... Kd5 {[%clk 0:00:36.5]} 42. Nb3 {[%clk 0:00:07.3]} 42...
Ra3 {[%clk 0:00:31.4]} 43. Nd2 {[%clk 0:00:06.4]} 43... Ke6 {[%clk 0:00:26.9]}
44. Ne4 {[%clk 0:00:06.2]} 44... Ra1 {[%clk 0:00:24.7]} 45. Ng3 {[%clk
0:00:04.9]} 45... h2 {[%clk 0:00:23.1]} 46. Be4 {[%clk 0:00:04.7]} 46... Kf6
{[%clk 0:00:19]} 47. Nh1 {[%clk 0:00:03.5]} 47... Re1+ {[%clk 0:00:16.2]} 48.
Kd3 {[%clk 0:00:04]} 48... Rd1+ {[%clk 0:00:12.8]} 49. Ke2 {[%clk 0:00:03.9]}
49... Ra1 {[%clk 0:00:12.3]} 50. Bxh2 {[%clk 0:00:03.8]} 50... Kg5 {[%clk
0:00:11.8]} 51. Ng3 {[%clk 0:00:03.4]} 51... Ra4 {[%clk 0:00:09.5]} 52. Bd3
{[%clk 0:00:03.2]} 52... Kh4 {[%clk 0:00:08.9]} 53. Nf1 {[%clk 0:00:03.7]} 53...
Kh3 {[%clk 0:00:08.9]} 54. Bg3 {[%clk 0:00:04.6]} 54... Ra2+ {[%clk 0:00:08.7]}
55. Nd2 {[%clk 0:00:05.1]} 55... Kg2 {[%clk 0:00:08.3]} 56. Ke3 {[%clk
0:00:05.5]} 56... Ra7 {[%clk 0:00:06.3]} 57. Ne4 {[%clk 0:00:05.9]} 57... Kh3
{[%clk 0:00:06.1]} 58. Ng5+ {[%clk 0:00:05.3]} 58... Kg2 {[%clk 0:00:05.5]} 59.
Be4+ {[%clk 0:00:06]} 59... Kf1 {[%clk 0:00:05.8]} 60. Kf4 {[%clk 0:00:06.6]}
60... Ra4 {[%clk 0:00:04.3]} 61. Kxg4 {[%clk 0:00:06.3]} 61... Ke2 {[%clk
0:00:04.7]} 62. Kf5 {[%clk 0:00:06.6]} 62... Ra5+ {[%clk 0:00:03.7]} 63. Kg4
{[%clk 0:00:06.2]} 63... Ra4 {[%clk 0:00:03.6]} 64. Kf4 {[%clk 0:00:06.7]} 64...
Kd2 {[%clk 0:00:03.4]} 65. f3 {[%clk 0:00:07.2]} 65... Kc3 {[%clk 0:00:03.4]}
66. Kg4 {[%clk 0:00:07.7]} 66... Kd4 {[%clk 0:00:03]} 67. Ne6+ {[%clk
0:00:08.2]} 67... Kc4 {[%clk 0:00:02.4]} 68. Be5 {[%clk 0:00:08.7]} 68... Ra8
{[%clk 0:00:01.8]} 69. Kf5 {[%clk 0:00:09.1]} 69... Rg8 {[%clk 0:00:02.7]} 70.
f4 {[%clk 0:00:09.5]} 70... Rg1 {[%clk 0:00:02.4]} 71. Kf6 {[%clk 0:00:09.7]}
71... Kb5 {[%clk 0:00:02.6]} 72. f5 {[%clk 0:00:10]} 72... Re1 {[%clk
0:00:02.6]} 73. Bd3+ {[%clk 0:00:10.2]} 73... Kc6 {[%clk 0:00:02.1]} 74. Bf4
{[%clk 0:00:10.2]} 74... Kd7 {[%clk 0:00:02.2]} 75. Bb5+ {[%clk 0:00:10.3]}
75... Kc8 {[%clk 0:00:01.1]} 76. Kf7 {[%clk 0:00:10.6]} 76... Kb7 {[%clk
0:00:02]} 77. f6 {[%clk 0:00:10.9]} 77... Rf1 {[%clk 0:00:02.1]} 78. Bd6 {[%clk
0:00:10.1]} 78... Kc8 {[%clk 0:00:03]} 79. Be7 {[%clk 0:00:10.3]} 79... Rg1
{[%clk 0:00:02.1]} 80. Bc6 {[%clk 0:00:10]} 80... Re1 {[%clk 0:00:02.2]} 81. Bd5
{[%clk 0:00:09.5]} 81... Kd7 {[%clk 0:00:01.8]} 82. Ng5 {[%clk 0:00:09.3]} 82...
Rg1 {[%clk 0:00:02]} 83. Be6+ {[%clk 0:00:09.6]} 83... Kc6 {[%clk 0:00:02.3]}
84. Nh7 {[%clk 0:00:10]} 84... Rh1 {[%clk 0:00:02.4]} 85. Nf8 {[%clk 0:00:09.9]}
85... Rg1 {[%clk 0:00:03.3]} 86. Ke8 {[%clk 0:00:10.2]} 86... Kc7 {[%clk
0:00:03.4]} 87. f7 {[%clk 0:00:10.7]} 87... Re1 {[%clk 0:00:03.7]} 88. Nd7
{[%clk 0:00:10.4]} 88... Ra1 {[%clk 0:00:02.5]} 89. Bd8+ {[%clk 0:00:09.2]}
89... Kd6 {[%clk 0:00:02]} 90. f8=Q+ {[%clk 0:00:09.3]} 90... Kxe6 {[%clk
0:00:02.9]} 91. Qf6+ {[%clk 0:00:09.4]} 91... Kd5 {[%clk 0:00:03]} 92. Qxa1
{[%clk 0:00:10.1]} 92... Kc6 {[%clk 0:00:03.9]} 93. Qa4+ {[%clk 0:00:09.8]}
93... Kb7 {[%clk 0:00:04.8]} 94. Qb5+ {[%clk 0:00:10.1]} 94... Ka8 {[%clk
0:00:04.9]} 95. Qb8# {[%clk 0:00:10.2]} 1-0

[Event "*** Titled Tuesday Blitz"]
[Site "Chess.com"]
[Date "2020.04.07"]
[Round "8"]
[White "Jospem"]
[Black "Rsnr"]
[Result "0-1"]
[WhiteElo "2917"]
[BlackElo "2843"]
[TimeControl "180+1"]
[EndTime "14:37:00 PDT"]
[Termination "Rsnr won by resignation"]

1. c4 {[%clk 0:03:00.9]} 1... e6 {[%clk 0:02:59.6]} 2. Nf3 {[%clk 0:03:01.3]}
2... d5 {[%clk 0:02:59.6]} 3. g3 {[%clk 0:03:02.2]} 3... Nf6 {[%clk 0:03:00]} 4.
Bg2 {[%clk 0:03:03.1]} 4... dxc4 {[%clk 0:03:00.7]} 5. O-O {[%clk 0:03:03.5]}
5... a6 {[%clk 0:02:44.2]} 6. a4 {[%clk 0:03:03.1]} 6... c5 {[%clk 0:02:41]} 7.
Na3 {[%clk 0:03:03]} 7... b6 {[%clk 0:02:28.1]} 8. Ne5 {[%clk 0:02:53.9]} 8...
Ra7 {[%clk 0:02:27.8]} 9. Naxc4 {[%clk 0:02:51.6]} 9... Bb7 {[%clk 0:02:25.9]}
10. Nf3 {[%clk 0:02:40.5]} 10... Nbd7 {[%clk 0:02:21.2]} 11. d3 {[%clk
0:02:40.6]} 11... Be7 {[%clk 0:02:20.8]} 12. Bd2 {[%clk 0:02:36.2]} 12... O-O
{[%clk 0:02:20.3]} 13. Qb3 {[%clk 0:02:22]} 13... Nd5 {[%clk 0:01:49.8]} 14.
Rfd1 {[%clk 0:02:21.2]} 14... Qa8 {[%clk 0:01:37.8]} 15. Nfe5 {[%clk 0:01:48]}
15... Nxe5 {[%clk 0:01:32.7]} 16. Nxe5 {[%clk 0:01:48.9]} 16... Rd8 {[%clk
0:01:07]} 17. Nc4 {[%clk 0:01:41.4]} 17... Qb8 {[%clk 0:00:41.5]} 18. e4 {[%clk
0:01:25.8]} 18... Nb4 {[%clk 0:00:40.8]} 19. Bf4 {[%clk 0:01:26.2]} 19... Qc8
{[%clk 0:00:35.9]} 20. Nxb6 {[%clk 0:01:26.2]} 20... Qc6 {[%clk 0:00:33.6]} 21.
a5 {[%clk 0:01:23.5]} 21... Qb5 {[%clk 0:00:31.4]} 22. Bf1 {[%clk 0:01:12.2]}
22... Nc6 {[%clk 0:00:20.7]} 23. Qa4 {[%clk 0:00:56.2]} 23... Nd4 {[%clk
0:00:20.6]} 24. Be3 {[%clk 0:00:44.4]} 24... Qxa4 {[%clk 0:00:10.2]} 25. Rxa4
{[%clk 0:00:38.5]} 25... Bc6 {[%clk 0:00:10.6]} 26. Rc4 {[%clk 0:00:38.7]} 26...
Bb5 {[%clk 0:00:11]} 27. Rc3 {[%clk 0:00:38.3]} 27... e5 {[%clk 0:00:05.7]} 28.
f4 {[%clk 0:00:30.6]} 28... Bd6 {[%clk 0:00:04.7]} 29. Kg2 {[%clk 0:00:23.6]}
29... f6 {[%clk 0:00:05.2]} 30. Rd2 {[%clk 0:00:21.2]} 30... Kf7 {[%clk
0:00:04.9]} 31. Be2 {[%clk 0:00:21.7]} 31... Ke8 {[%clk 0:00:05]} 32. Bd1 {[%clk
0:00:22.1]} 32... Bc6 {[%clk 0:00:03.7]} 33. Bb3 {[%clk 0:00:19.9]} 33... f5
{[%clk 0:00:03.1]} 34. Bd5 {[%clk 0:00:20.2]} 34... Bb5 {[%clk 0:00:03]} 35.
exf5 {[%clk 0:00:18.4]} 35... Nxf5 {[%clk 0:00:02.2]} 36. Bf2 {[%clk 0:00:18.8]}
36... exf4 {[%clk 0:00:02.8]} 37. Re2+ {[%clk 0:00:16.6]} 37... Kf8 {[%clk
0:00:02.8]} 38. Re4 {[%clk 0:00:15.5]} 38... fxg3 {[%clk 0:00:02.8]} 39. hxg3
{[%clk 0:00:16.4]} 39... Nd4 {[%clk 0:00:03.4]} 40. Rc1 {[%clk 0:00:14.7]} 40...
Nf5 {[%clk 0:00:03.1]} 41. Rd1 {[%clk 0:00:12.1]} 41... Re7 {[%clk 0:00:03.3]}
42. Rxe7 {[%clk 0:00:11.8]} 42... Nxe7 {[%clk 0:00:04.2]} 43. Bc4 {[%clk
0:00:12]} 43... Bc6+ {[%clk 0:00:04.2]} 44. Kg1 {[%clk 0:00:12]} 44... Nf5
{[%clk 0:00:04.8]} 45. Bxa6 {[%clk 0:00:09.7]} 45... g6 {[%clk 0:00:04.7]} 46.
Bc4 {[%clk 0:00:09.4]} 46... Bc7 {[%clk 0:00:04.8]} 47. Bxc5+ {[%clk 0:00:08.9]}
47... Kg7 {[%clk 0:00:05.6]} 48. Bf2 {[%clk 0:00:07.5]} 48... Nxg3 {[%clk
0:00:05.7]} 49. d4 {[%clk 0:00:06]} 49... Ne4 {[%clk 0:00:04.4]} 50. d5 {[%clk
0:00:06.5]} 50... Nxf2 {[%clk 0:00:04.6]} 51. Kxf2 {[%clk 0:00:06.6]} 51... Be8
{[%clk 0:00:02.8]} 52. Ke3 {[%clk 0:00:06]} 52... Be5 {[%clk 0:00:02.5]} 53. b4
{[%clk 0:00:05.9]} 53... Rb8 {[%clk 0:00:03]} 54. Ke4 {[%clk 0:00:05.9]} 54...
Bd6 {[%clk 0:00:03.5]} 55. Rb1 {[%clk 0:00:05.7]} 55... h5 {[%clk 0:00:02.6]}
56. Bf1 {[%clk 0:00:05.2]} 56... g5 {[%clk 0:00:02.7]} 57. b5 {[%clk 0:00:05.7]}
57... Bg6+ {[%clk 0:00:03.2]} 58. Kd4 {[%clk 0:00:06.3]} 58... Bxb1 {[%clk
0:00:04.1]} 59. Nc4 {[%clk 0:00:07.2]} 59... Rxb5 {[%clk 0:00:03.5]} 60. Nxd6
{[%clk 0:00:07.4]} 60... Rxa5 {[%clk 0:00:04.3]} 61. Nc4 {[%clk 0:00:06.7]}
61... Ra4 {[%clk 0:00:04.1]} 62. Kc3 {[%clk 0:00:07.3]} 62... Bf5 {[%clk
0:00:04.1]} 63. d6 {[%clk 0:00:06.6]} 63... Bd7 {[%clk 0:00:04.4]} 64. Nb6
{[%clk 0:00:06.4]} 64... Ra7 {[%clk 0:00:04.8]} 65. Kb4 {[%clk 0:00:06.9]} 65...
Kf6 {[%clk 0:00:05.4]} 66. Kc5 {[%clk 0:00:07.2]} 66... Ke5 {[%clk 0:00:05.6]}
67. Nc4+ {[%clk 0:00:07.7]} 67... Ke6 {[%clk 0:00:05.7]} 68. Bg2 {[%clk
0:00:07]} 68... g4 {[%clk 0:00:05.7]} 69. Bd5+ {[%clk 0:00:07.4]} 69... Kf5
{[%clk 0:00:06.3]} 70. Kb6 {[%clk 0:00:08.3]} 70... Ra1 {[%clk 0:00:04.7]} 71.
Kc7 {[%clk 0:00:08.8]} 71... Be6 {[%clk 0:00:04.2]} 72. Ne3+ {[%clk 0:00:04.2]}
72... Ke5 {[%clk 0:00:04.5]} 73. Bc6 {[%clk 0:00:02.4]} 73... Rc1 {[%clk
0:00:04.3]} 74. d7 {[%clk 0:00:01.8]} 74... Bxd7 {[%clk 0:00:04.2]} 75. Kxd7
{[%clk 0:00:02.7]} 75... Rxc6 {[%clk 0:00:04.1]} 76. Kxc6 {[%clk 0:00:02.7]}
76... Ke4 {[%clk 0:00:05]} 77. Ng2 {[%clk 0:00:03]} 77... Kf3 {[%clk 0:00:04.7]}
78. Nh4+ {[%clk 0:00:03.7]} 78... Kg3 {[%clk 0:00:05.4]} 79. Nf5+ {[%clk
0:00:04.1]} 79... Kf4 {[%clk 0:00:06.2]} 80. Nh4 {[%clk 0:00:04.5]} 80... g3
{[%clk 0:00:06.5]} 81. Kd5 {[%clk 0:00:05.4]} 81... Kg4 {[%clk 0:00:07.2]} 82.
Ng2 {[%clk 0:00:05.8]} 82... Kh3 {[%clk 0:00:06.1]} 83. Nf4+ {[%clk 0:00:05.8]}
83... Kh2 {[%clk 0:00:06.5]} 84. Ke4 {[%clk 0:00:02.6]} 84... g2 {[%clk
0:00:07.4]} 85. Nxh5 {[%clk 0:00:01.4]} 85... g1=Q {[%clk 0:00:07.5]} 86. Nf4
{[%clk 0:00:02.3]} 86... Qg4 {[%clk 0:00:07.8]} 87. Ke3 {[%clk 0:00:02.3]} 87...
Qf5 {[%clk 0:00:08.1]} 88. Nd3 {[%clk 0:00:03.2]} 88... Kg3 {[%clk 0:00:08]} 89.
Ke2 {[%clk 0:00:03.4]} 89... Qe4+ {[%clk 0:00:08.1]} 90. Kd2 {[%clk 0:00:03.9]}
90... Kf3 {[%clk 0:00:08.4]} 91. Nc1 {[%clk 0:00:04.5]} 91... Qe3+ {[%clk
0:00:08]} 92. Kc2 {[%clk 0:00:05.4]} 92... Qc5+ {[%clk 0:00:08.4]} 93. Kd2
{[%clk 0:00:05.6]} 93... Qd4+ {[%clk 0:00:08.8]} 94. Kc2 {[%clk 0:00:06.1]}
94... Ke3 {[%clk 0:00:09.1]} 95. Na2 {[%clk 0:00:06]} 95... Qc4+ {[%clk
0:00:09.2]} 96. Kb2 {[%clk 0:00:06.5]} 96... Kd3 {[%clk 0:00:09.3]} 97. Nc1+
{[%clk 0:00:07.1]} 97... Kd2 {[%clk 0:00:09.9]} 98. Nb3+ {[%clk 0:00:07.7]}
98... Kd1 {[%clk 0:00:10.6]} 99. Na1 {[%clk 0:00:07.5]} 99... Qb4+ {[%clk
0:00:09.9]} 100. Ka2 {[%clk 0:00:07.4]} 100... Kc1 {[%clk 0:00:07.8]} 101. Nb3+
{[%clk 0:00:08]} 101... Kc2 {[%clk 0:00:08.5]} 102. Nd4+ {[%clk 0:00:08.9]}
102... Qxd4 {[%clk 0:00:05.4]} 0-1